[Event "*** Titled Tuesday 3|2 Blitz"]
[Site "Chess.com"]
[Date "2015.09.01"]
[Round "3"]
[White "lukas_111111"]
[Black "Tesla37"]
[Result "0-1"]
[WhiteElo "2210"]
[BlackElo "2560"]
[TimeControl "180+2"]
[EndTime "11:31:13 PDT"]
[Termination "Tesla37 won by resignation"]

1. d4 {[%clk 0:03:01.9]} 1... Nf6 {[%clk 0:03:00.4]} 2. c4 {[%clk 0:03:00.4]}
2... d6 {[%clk 0:03:01.9]} 3. Nf3 {[%clk 0:03:00.2]} 3... Nbd7 {[%clk
0:03:02.8]} 4. Nc3 {[%clk 0:02:59.2]} 4... e5 {[%clk 0:03:04.2]} 5. e4 {[%clk
0:03:00.1]} 5... g6 {[%clk 0:03:04.6]} 6. Be2 {[%clk 0:03:00.6]} 6... c6 {[%clk
0:03:05.4]} 7. O-O {[%clk 0:03:01.7]} 7... Bg7 {[%clk 0:03:06.9]} 8. Be3 {[%clk
0:03:02.4]} 8... O-O {[%clk 0:03:07.7]} 9. d5 {[%clk 0:03:03.5]} 9... c5 {[%clk
0:03:08.5]} 10. Ne1 {[%clk 0:03:04.1]} 10... Ne8 {[%clk 0:03:07.7]} 11. g4
{[%clk 0:03:05.1]} 11... Bf6 {[%clk 0:03:04.6]} 12. Qd2 {[%clk 0:03:00.8]} 12...
Ng7 {[%clk 0:03:05.4]} 13. Bh6 {[%clk 0:02:56.7]} 13... Kh8 {[%clk 0:03:03.6]}
14. Ng2 {[%clk 0:02:49.6]} 14... Be7 {[%clk 0:03:03.3]} 15. a3 {[%clk
0:02:38.8]} 15... Rg8 {[%clk 0:02:58.9]} 16. b4 {[%clk 0:02:25.8]} 16... b6
{[%clk 0:02:56.4]} 17. Bd3 {[%clk 0:02:13.9]} 17... Ne8 {[%clk 0:02:40.8]} 18.
Kh1 {[%clk 0:02:10.6]} 18... g5 {[%clk 0:02:39]} 19. h4 {[%clk 0:02:06.2]} 19...
gxh4 {[%clk 0:02:37.6]} 20. Ne3 {[%clk 0:02:00.1]} 20... Bg5 {[%clk 0:02:32.1]}
21. Bxg5 {[%clk 0:01:58.8]} 21... Qxg5 {[%clk 0:02:32.8]} 22. Qe2 {[%clk
0:01:56.8]} 22... Nf8 {[%clk 0:02:29.1]} 23. bxc5 {[%clk 0:01:50.2]} 23... bxc5
{[%clk 0:02:29.1]} 24. Qf3 {[%clk 0:01:43.8]} 24... Ng6 {[%clk 0:02:26.7]} 25.
Rg1 {[%clk 0:01:32]} 25... Nf4 {[%clk 0:02:26.7]} 26. Nf5 {[%clk 0:01:31.5]}
26... Rb8 {[%clk 0:02:17.4]} 27. Nb5 {[%clk 0:01:27.7]} 27... Rg6 {[%clk
0:02:17.1]} 28. Nxa7 {[%clk 0:01:12.8]} 28... Rb3 {[%clk 0:02:15.9]} 29. Rad1
{[%clk 0:00:48.2]} 29... Ba6 {[%clk 0:02:15.8]} 30. Nb5 {[%clk 0:00:04.2]} 30...
Bxb5 {[%clk 0:02:15.1]} 31. cxb5 {[%clk 0:00:05.4]} 31... c4 {[%clk 0:02:16.6]}
0-1

[Event "*** Titled Tuesday 3|2 Blitz"]
[Site "Chess.com"]
[Date "2015.09.01"]
[Round "3"]
[White "ChessTrener"]
[Black "Keaton87"]
[Result "1-0"]
[WhiteElo "2534"]
[BlackElo "2416"]
[TimeControl "180+2"]
[EndTime "11:31:20 PDT"]
[Termination "ChessTrener won by resignation"]

1. d4 {[%clk 0:02:59.6]} 1... d5 {[%clk 0:02:56.7]} 2. Nf3 {[%clk 0:03:00.6]}
2... e6 {[%clk 0:02:57.4]} 3. c3 {[%clk 0:02:54.8]} 3... Nf6 {[%clk 0:02:53.9]}
4. Bg5 {[%clk 0:02:55.7]} 4... Be7 {[%clk 0:02:54.7]} 5. Nbd2 {[%clk 0:02:55.5]}
5... O-O {[%clk 0:02:55.3]} 6. Bxf6 {[%clk 0:02:56.4]} 6... Bxf6 {[%clk
0:02:55.6]} 7. e4 {[%clk 0:02:58.3]} 7... dxe4 {[%clk 0:02:54.8]} 8. Nxe4 {[%clk
0:02:59.1]} 8... b6 {[%clk 0:02:53.8]} 9. Bd3 {[%clk 0:03:00.2]} 9... Bb7 {[%clk
0:02:54.6]} 10. Qe2 {[%clk 0:03:01.9]} 10... Nd7 {[%clk 0:02:54.6]} 11. O-O-O
{[%clk 0:03:03.4]} 11... Qe7 {[%clk 0:02:47.5]} 12. h4 {[%clk 0:03:03.9]} 12...
Rfd8 {[%clk 0:02:33.8]} 13. g4 {[%clk 0:03:03.7]} 13... g6 {[%clk 0:02:26.2]}
14. h5 {[%clk 0:03:04.3]} 14... c5 {[%clk 0:02:22.1]} 15. hxg6 {[%clk 0:03:04]}
15... hxg6 {[%clk 0:02:22]} 16. Nxf6+ {[%clk 0:03:02.8]} 16... Qxf6 {[%clk
0:02:19.1]} 17. Rh3 {[%clk 0:02:54.6]} 17... Qf4+ {[%clk 0:02:11.6]} 18. Kb1
{[%clk 0:02:53.7]} 18... Bxf3 {[%clk 0:02:12]} 19. Rxf3 {[%clk 0:02:52.2]} 19...
Qxg4 {[%clk 0:02:12.3]} 20. Ka1 {[%clk 0:02:36.9]} 20... cxd4 {[%clk 0:02:08.1]}
21. Bxg6 {[%clk 0:02:18.8]} 21... fxg6 {[%clk 0:01:33.4]} 22. Rf8+ {[%clk
0:02:18.2]} 22... Nxf8 {[%clk 0:01:35]} 23. Qxg4 {[%clk 0:02:20.1]} 23... dxc3
{[%clk 0:01:36.2]} 24. bxc3 {[%clk 0:02:20.9]} 24... Rxd1+ {[%clk 0:01:35]} 25.
Qxd1 {[%clk 0:02:20.5]} 25... Rc8 {[%clk 0:01:36]} 26. Kb2 {[%clk 0:02:21.6]}
26... Rc7 {[%clk 0:01:36.9]} 27. Qd6 {[%clk 0:02:22.2]} 27... Rd7 {[%clk
0:01:36.9]} 28. Qf4 {[%clk 0:02:23.3]} 28... Rf7 {[%clk 0:01:37.4]} 29. Qg3
{[%clk 0:02:22.4]} 29... Rd7 {[%clk 0:01:37]} 30. Kb3 {[%clk 0:02:23.6]} 30...
Rf7 {[%clk 0:01:38]} 31. a4 {[%clk 0:02:24.7]} 31... Rd7 {[%clk 0:01:38.7]} 32.
Kb4 {[%clk 0:02:25.5]} 32... Rf7 {[%clk 0:01:39.1]} 33. c4 {[%clk 0:02:26.6]}
33... Rd7 {[%clk 0:01:39.9]} 34. a5 {[%clk 0:02:26.7]} 34... bxa5+ {[%clk
0:01:27.3]} 35. Kxa5 {[%clk 0:02:26.2]} 35... Kf7 {[%clk 0:01:27.6]} 36. c5
{[%clk 0:02:27]} 36... Ke8 {[%clk 0:01:20.6]} 37. c6 {[%clk 0:02:24]} 37... Rd1
{[%clk 0:01:13.9]} 38. Qb8+ {[%clk 0:02:23.1]} 38... Ke7 {[%clk 0:01:14.8]} 39.
c7 {[%clk 0:02:15.7]} 39... Ra1+ {[%clk 0:01:10]} 40. Kb4 {[%clk 0:02:15.7]}
40... Rb1+ {[%clk 0:00:45.9]} 41. Kc3 {[%clk 0:02:16]} 41... Rc1+ {[%clk
0:00:44]} 42. Kd2 {[%clk 0:02:17]} 1-0

[Event "*** Titled Tuesday 3|2 Blitz"]
[Site "Chess.com"]
[Date "2015.09.01"]
[Round "3"]
[White "PawelCzarnota"]
[Black "PauloCesarCosta"]
[Result "1-0"]
[WhiteElo "2438"]
[BlackElo "2019"]
[TimeControl "180+2"]
[EndTime "11:32:02 PDT"]
[Termination "PawelCzarnota won on time"]

1. e4 {[%clk 0:03:01.9]} 1... e6 {[%clk 0:03:00.4]} 2. d4 {[%clk 0:03:02.3]}
2... d5 {[%clk 0:03:00.9]} 3. Nd2 {[%clk 0:03:03.8]} 3... Nf6 {[%clk 0:03:01]}
4. e5 {[%clk 0:03:03.9]} 4... Nfd7 {[%clk 0:03:02.1]} 5. Bd3 {[%clk 0:03:05.4]}
5... c5 {[%clk 0:03:03.3]} 6. c3 {[%clk 0:03:06.7]} 6... Nc6 {[%clk 0:03:04.7]}
7. Ne2 {[%clk 0:03:07.4]} 7... Qb6 {[%clk 0:03:06.2]} 8. Nf3 {[%clk 0:03:07.9]}
8... cxd4 {[%clk 0:03:07.3]} 9. cxd4 {[%clk 0:03:09.2]} 9... f6 {[%clk
0:03:08.3]} 10. exf6 {[%clk 0:03:10.5]} 10... Nxf6 {[%clk 0:03:08.6]} 11. O-O
{[%clk 0:03:12.4]} 11... Bd6 {[%clk 0:03:08.8]} 12. b3 {[%clk 0:03:13.6]} 12...
O-O {[%clk 0:03:07.6]} 13. Bf4 {[%clk 0:03:14.2]} 13... Nxd4 {[%clk 0:02:58.6]}
14. Nfxd4 {[%clk 0:03:08.1]} 14... e5 {[%clk 0:02:55.4]} 15. Bg3 {[%clk
0:02:40.9]} 15... exd4 {[%clk 0:02:52.6]} 16. Nxd4 {[%clk 0:02:38.3]} 16... Bg4
{[%clk 0:02:16.1]} 17. Be2 {[%clk 0:02:37.9]} 17... Bxe2 {[%clk 0:02:04.3]} 18.
Nxe2 {[%clk 0:02:38.5]} 18... Bxg3 {[%clk 0:02:01]} 19. hxg3 {[%clk 0:02:40.4]}
19... Rad8 {[%clk 0:01:48.8]} 20. Qd4 {[%clk 0:02:40.5]} 20... Qxd4 {[%clk
0:01:36.8]} 21. Nxd4 {[%clk 0:02:41.2]} 21... Rc8 {[%clk 0:00:48.6]} 22. f3
{[%clk 0:02:41.3]} 22... Rfe8 {[%clk 0:00:42.1]} 23. Rac1 {[%clk 0:02:39.7]}
23... a6 {[%clk 0:00:35]} 24. Kf2 {[%clk 0:02:40.1]} 24... g6 {[%clk 0:00:27.2]}
25. g4 {[%clk 0:02:40.1]} 25... h6 {[%clk 0:00:22]} 26. Rfd1 {[%clk 0:02:40.3]}
26... Kf7 {[%clk 0:00:14.6]} 27. Ne2 {[%clk 0:02:37.2]} 27... Rc6 {[%clk
0:00:07.5]} 28. Rxc6 {[%clk 0:02:30.5]} 28... bxc6 {[%clk 0:00:08]} 29. Rc1
{[%clk 0:02:31.7]} 29... Rc8 {[%clk 0:00:07.1]} 30. b4 {[%clk 0:02:28.1]} 30...
Ke7 {[%clk 0:00:07.1]} 31. Nd4 {[%clk 0:02:26.1]} 31... Kd7 {[%clk 0:00:06.6]}
32. a3 {[%clk 0:02:26]} 32... Ne8 {[%clk 0:00:05.9]} 33. Re1 {[%clk 0:02:21.5]}
33... Nd6 {[%clk 0:00:05.8]} 34. Re6 {[%clk 0:02:22]} 34... g5 {[%clk
0:00:05.1]} 35. Rxh6 {[%clk 0:02:22.1]} 35... Nc4 {[%clk 0:00:06.6]} 36. Rh7+
{[%clk 0:02:20.1]} 36... Ke8 {[%clk 0:00:06]} 37. Nf5 {[%clk 0:02:12.7]} 37...
Ra8 {[%clk 0:00:03.7]} 38. Rh8+ {[%clk 0:02:12.6]} 1-0

[Event "*** Titled Tuesday 3|2 Blitz"]
[Site "Chess.com"]
[Date "2015.09.01"]
[Round "3"]
[White "rikyshi"]
[Black "AndrewMcStone"]
[Result "1-0"]
[WhiteElo "2116"]
[BlackElo "1943"]
[TimeControl "180+2"]
[EndTime "11:32:12 PDT"]
[Termination "rikyshi won by resignation"]

1. e4 {[%clk 0:03:01.9]} 1... e6 {[%clk 0:03:00.8]} 2. d4 {[%clk 0:03:02]} 2...
d5 {[%clk 0:03:02.2]} 3. Nc3 {[%clk 0:03:02.8]} 3... Nc6 {[%clk 0:03:02.4]} 4.
Nf3 {[%clk 0:03:02.2]} 4... Nf6 {[%clk 0:03:02.9]} 5. e5 {[%clk 0:03:02.8]} 5...
Ne4 {[%clk 0:03:03.5]} 6. Bd3 {[%clk 0:03:03.7]} 6... Bb4 {[%clk 0:03:03.4]} 7.
O-O {[%clk 0:03:02.6]} 7... Nxc3 {[%clk 0:03:03.8]} 8. bxc3 {[%clk 0:03:02.4]}
8... Bxc3 {[%clk 0:03:05.7]} 9. Rb1 {[%clk 0:03:02.5]} 9... Bb4 {[%clk
0:03:06.2]} 10. Ng5 {[%clk 0:02:51.6]} 10... Be7 {[%clk 0:02:34.3]} 11. Qg4
{[%clk 0:02:37.7]} 11... h5 {[%clk 0:01:25.6]} 12. Qg3 {[%clk 0:01:41.3]} 12...
Nxd4 {[%clk 0:01:10]} 13. c3 {[%clk 0:01:30.4]} 13... Nf5 {[%clk 0:01:07.3]} 14.
Bxf5 {[%clk 0:01:29.7]} 14... exf5 {[%clk 0:01:09.2]} 15. Nf3 {[%clk 0:01:29.7]}
15... g5 {[%clk 0:00:29.4]} 16. Bxg5 {[%clk 0:01:18.6]} 16... h4 {[%clk
0:00:29.1]} 17. Qf4 {[%clk 0:01:14.6]} 17... Be6 {[%clk 0:00:18.4]} 18. Bxe7
{[%clk 0:01:10.7]} 18... Qxe7 {[%clk 0:00:20.3]} 19. Rxb7 {[%clk 0:01:12]} 19...
h3 {[%clk 0:00:12.2]} 20. Rfb1 {[%clk 0:01:06.1]} 20... Kd7 {[%clk 0:00:10.6]}
21. g3 {[%clk 0:01:04.8]} 21... Rhg8 {[%clk 0:00:11.3]} 22. Qa4+ {[%clk
0:01:02.9]} 22... Kc8 {[%clk 0:00:10.7]} 23. Qa6 {[%clk 0:01:01.4]} 23... Kd8
{[%clk 0:00:07]} 24. Rb8+ {[%clk 0:00:56.3]} 1-0

[Event "*** Titled Tuesday 3|2 Blitz"]
[Site "Chess.com"]
[Date "2015.09.01"]
[Round "3"]
[White "Dale"]
[Black "BIG_Pirate"]
[Result "0-1"]
[WhiteElo "1942"]
[BlackElo "2210"]
[TimeControl "180+2"]
[EndTime "11:32:12 PDT"]
[Termination "BIG_Pirate won by checkmate"]

1. h4 {[%clk 0:03:01.9]} 1... d5 {[%clk 0:03:00.2]} 2. Nc3 {[%clk 0:03:00.6]}
2... Nf6 {[%clk 0:03:00]} 3. d3 {[%clk 0:03:00.1]} 3... Bf5 {[%clk 0:02:58]} 4.
g4 {[%clk 0:02:53.1]} 4... Bxg4 {[%clk 0:02:57.1]} 5. Nf3 {[%clk 0:02:49.1]}
5... Bxf3 {[%clk 0:02:54.8]} 6. exf3 {[%clk 0:02:49.5]} 6... g6 {[%clk
0:02:54.7]} 7. Bh3 {[%clk 0:02:45.7]} 7... Bg7 {[%clk 0:02:54.7]} 8. Bg5 {[%clk
0:02:41.6]} 8... Nbd7 {[%clk 0:02:52.9]} 9. h5 {[%clk 0:02:38.6]} 9... Nxh5
{[%clk 0:02:33.7]} 10. Nxd5 {[%clk 0:02:38.6]} 10... Nhf6 {[%clk 0:02:34.2]} 11.
Nc3 {[%clk 0:02:18.8]} 11... c6 {[%clk 0:02:15.9]} 12. O-O {[%clk 0:02:18.8]}
12... h6 {[%clk 0:02:14.4]} 13. Be3 {[%clk 0:02:13.4]} 13... O-O {[%clk
0:02:14.1]} 14. a4 {[%clk 0:02:10.1]} 14... Nd5 {[%clk 0:01:38.9]} 15. Ne4
{[%clk 0:02:03.8]} 15... Nxe3 {[%clk 0:01:33.1]} 16. fxe3 {[%clk 0:02:03.9]}
16... f5 {[%clk 0:01:24.9]} 17. Nf2 {[%clk 0:01:58.1]} 17... e5 {[%clk
0:01:25.2]} 18. e4 {[%clk 0:01:47.3]} 18... f4 {[%clk 0:00:54.4]} 19. c3 {[%clk
0:01:37.5]} 19... Nc5 {[%clk 0:00:50.2]} 20. b4 {[%clk 0:01:33.5]} 20... Nd7
{[%clk 0:00:49.1]} 21. Ra2 {[%clk 0:01:31.3]} 21... Kh7 {[%clk 0:00:49.1]} 22.
a5 {[%clk 0:01:28.5]} 22... c5 {[%clk 0:00:45.4]} 23. Bxd7 {[%clk 0:01:25.5]}
23... Qxd7 {[%clk 0:00:47.3]} 24. bxc5 {[%clk 0:01:26.3]} 24... Rfd8 {[%clk
0:00:42.3]} 25. Re1 {[%clk 0:01:22]} 25... Rac8 {[%clk 0:00:42.7]} 26. Kf1
{[%clk 0:01:22.1]} 26... Rxc5 {[%clk 0:00:43.5]} 27. Ke2 {[%clk 0:01:21.5]}
27... Rxc3 {[%clk 0:00:44.2]} 28. Qa1 {[%clk 0:01:19.4]} 28... Qd4 {[%clk
0:00:43.1]} 29. Rb1 {[%clk 0:01:17.6]} 29... Rd7 {[%clk 0:00:35.6]} 30. Kf1
{[%clk 0:01:17.4]} 30... Rdc7 {[%clk 0:00:35.7]} 31. Ra4 {[%clk 0:01:16.4]}
31... Qe3 {[%clk 0:00:34.7]} 32. a6 {[%clk 0:01:13.1]} 32... bxa6 {[%clk
0:00:30.5]} 33. Rxa6 {[%clk 0:01:10.6]} 33... Qxf3 {[%clk 0:00:31]} 34. Rxa7
{[%clk 0:01:09.2]} 34... Rc2 {[%clk 0:00:26.8]} 35. Rxc7 {[%clk 0:01:02.5]}
35... Qxf2# {[%clk 0:00:27.5]} 0-1

[Event "*** Titled Tuesday 3|2 Blitz"]
[Site "Chess.com"]
[Date "2015.09.01"]
[Round "3"]
[White "Gabrinsky"]
[Black "Colombiano07"]
[Result "1-0"]
[WhiteElo "1968"]
[BlackElo "1980"]
[TimeControl "180+2"]
[EndTime "11:32:29 PDT"]
[Termination "Gabrinsky won by resignation"]

1. e4 {[%clk 0:03:01.9]} 1... c5 {[%clk 0:03:00.6]} 2. Nc3 {[%clk 0:03:01.9]}
2... g6 {[%clk 0:03:00.6]} 3. f4 {[%clk 0:03:02.8]} 3... Bg7 {[%clk 0:03:01.5]}
4. Nf3 {[%clk 0:03:04.2]} 4... Nc6 {[%clk 0:03:02.9]} 5. Bb5 {[%clk 0:03:05.1]}
5... Nd4 {[%clk 0:03:04.5]} 6. O-O {[%clk 0:03:06.4]} 6... Nxb5 {[%clk
0:03:05.5]} 7. Nxb5 {[%clk 0:03:07.9]} 7... d5 {[%clk 0:03:07]} 8. exd5 {[%clk
0:03:07.6]} 8... a6 {[%clk 0:03:08.4]} 9. Nc3 {[%clk 0:03:07.5]} 9... Nf6 {[%clk
0:03:10.1]} 10. d4 {[%clk 0:03:08.2]} 10... c4 {[%clk 0:03:10.8]} 11. Ne5 {[%clk
0:03:06.7]} 11... Nxd5 {[%clk 0:03:09.7]} 12. Nxc4 {[%clk 0:03:07.5]} 12... O-O
{[%clk 0:03:10.2]} 13. Ne5 {[%clk 0:03:04.8]} 13... Be6 {[%clk 0:03:09.9]} 14.
Nxd5 {[%clk 0:03:03.8]} 14... Bxd5 {[%clk 0:03:10.7]} 15. c3 {[%clk 0:03:04.9]}
15... b5 {[%clk 0:03:10.9]} 16. Qe2 {[%clk 0:03:01.2]} 16... Qd6 {[%clk
0:03:11]} 17. Re1 {[%clk 0:03:01]} 17... Bxe5 {[%clk 0:03:11.2]} 18. dxe5 {[%clk
0:02:55.8]} 18... Qc6 {[%clk 0:03:12]} 19. Be3 {[%clk 0:02:56.4]} 19... e6
{[%clk 0:03:11.1]} 20. a3 {[%clk 0:02:44]} 20... Bb3 {[%clk 0:03:08.3]} 21. Bd4
{[%clk 0:02:41.8]} 21... Rfd8 {[%clk 0:03:08.6]} 22. Qe3 {[%clk 0:02:41.2]}
22... Rd7 {[%clk 0:03:07.4]} 23. Rf1 {[%clk 0:02:42]} 23... Rad8 {[%clk
0:03:08]} 24. Rae1 {[%clk 0:02:43.1]} 24... Qc4 {[%clk 0:03:05.7]} 25. Rf3
{[%clk 0:02:41.5]} 25... a5 {[%clk 0:03:02.3]} 26. Rh3 {[%clk 0:02:39.5]} 26...
b4 {[%clk 0:03:03]} 27. axb4 {[%clk 0:02:39.5]} 27... axb4 {[%clk 0:03:04.9]}
28. Re2 {[%clk 0:02:40.8]} 28... bxc3 {[%clk 0:02:57.5]} 29. bxc3 {[%clk
0:02:42.7]} 29... Ra8 {[%clk 0:02:36.9]} 30. Re1 {[%clk 0:02:38.5]} 30... Ra2
{[%clk 0:02:35.8]} 31. f5 {[%clk 0:02:36.4]} 31... Qc6 {[%clk 0:02:18.7]} 32.
Rg3 {[%clk 0:02:34.3]} 32... Bd5 {[%clk 0:02:12.4]} 33. f6 {[%clk 0:02:27.9]}
33... Qc8 {[%clk 0:01:49.1]} 34. Bc5 {[%clk 0:02:23.7]} 34... h6 {[%clk
0:01:31.1]} 35. Bb4 {[%clk 0:01:56.8]} 35... Kh7 {[%clk 0:01:17.7]} 36. Re2
{[%clk 0:01:52.1]} 36... Rda7 {[%clk 0:01:14.5]} 37. Rh3 {[%clk 0:01:45.9]}
37... h5 {[%clk 0:01:07.3]} 38. Rxh5+ {[%clk 0:01:44.5]} 38... gxh5 {[%clk
0:01:07.3]} 39. Qg5 {[%clk 0:01:45.7]} 39... Ra1+ {[%clk 0:00:36.9]} 40. Kf2
{[%clk 0:01:45.6]} 40... Rf1+ {[%clk 0:00:20]} 41. Kxf1 {[%clk 0:01:42.4]} 41...
Bxg2+ {[%clk 0:00:20.8]} 42. Kf2 {[%clk 0:01:36.4]} 1-0

[Event "*** Titled Tuesday 3|2 Blitz"]
[Site "Chess.com"]
[Date "2015.09.01"]
[Round "3"]
[White "Iball95"]
[Black "dretch"]
[Result "0-1"]
[WhiteElo "2340"]
[BlackElo "2638"]
[TimeControl "180+2"]
[EndTime "11:32:47 PDT"]
[Termination "dretch won by checkmate"]

1. e4 {[%clk 0:03:01.9]} 1... e6 {[%clk 0:03:00.1]} 2. d4 {[%clk 0:03:02.7]}
2... d5 {[%clk 0:03:01.3]} 3. Nd2 {[%clk 0:03:03.7]} 3... c5 {[%clk 0:03:02]} 4.
Ngf3 {[%clk 0:03:04.4]} 4... cxd4 {[%clk 0:03:02.4]} 5. Nxd4 {[%clk 0:03:04.7]}
5... Nf6 {[%clk 0:03:02.5]} 6. exd5 {[%clk 0:03:05]} 6... Nxd5 {[%clk
0:03:03.5]} 7. N2f3 {[%clk 0:03:05.1]} 7... Be7 {[%clk 0:03:03.8]} 8. Bd3 {[%clk
0:02:58.9]} 8... O-O {[%clk 0:03:03.9]} 9. O-O {[%clk 0:02:59.2]} 9... b6 {[%clk
0:03:04.4]} 10. c3 {[%clk 0:02:56.5]} 10... Bb7 {[%clk 0:03:04.3]} 11. Qe2
{[%clk 0:02:57.7]} 11... Nd7 {[%clk 0:02:57.8]} 12. Bd2 {[%clk 0:02:52.6]} 12...
Qc7 {[%clk 0:02:55.7]} 13. Rad1 {[%clk 0:02:50.5]} 13... Nc5 {[%clk 0:02:43.4]}
14. Bb1 {[%clk 0:02:47.7]} 14... Rad8 {[%clk 0:02:34.6]} 15. Ne5 {[%clk
0:02:26.7]} 15... Bf6 {[%clk 0:02:29.3]} 16. Rfe1 {[%clk 0:02:22.6]} 16... Ba6
{[%clk 0:02:18.2]} 17. c4 {[%clk 0:01:28.1]} 17... Bxe5 {[%clk 0:02:18]} 18.
Qxe5 {[%clk 0:01:30]} 18... Qxe5 {[%clk 0:02:19]} 19. Rxe5 {[%clk 0:01:31.8]}
19... Bxc4 {[%clk 0:02:20.7]} 20. Nc6 {[%clk 0:01:32.2]} 20... Rd6 {[%clk
0:02:18]} 21. Nd4 {[%clk 0:01:18.6]} 21... Rfd8 {[%clk 0:02:06.8]} 22. b3 {[%clk
0:01:15.5]} 22... Bd3 {[%clk 0:01:52.2]} 23. Bg5 {[%clk 0:00:45]} 23... f6
{[%clk 0:01:51.5]} 24. Bxd3 {[%clk 0:00:45.2]} 24... fxe5 {[%clk 0:01:43.7]} 25.
Bxd8 {[%clk 0:00:45.3]} 25... exd4 {[%clk 0:01:44]} 26. Bg5 {[%clk 0:00:45.4]}
26... Nc3 {[%clk 0:01:37.6]} 27. Rd2 {[%clk 0:00:45.7]} 27... Nxd3 {[%clk
0:01:36.2]} 28. Rxd3 {[%clk 0:00:46.5]} 28... Nxa2 {[%clk 0:01:37.4]} 29. Bd2
{[%clk 0:00:47]} 29... e5 {[%clk 0:01:32.6]} 30. Kf1 {[%clk 0:00:41.1]} 30...
Kf7 {[%clk 0:01:22]} 31. Rf3+ {[%clk 0:00:38.9]} 31... Ke6 {[%clk 0:01:23]} 32.
Rh3 {[%clk 0:00:38.7]} 32... h6 {[%clk 0:01:19]} 33. Rg3 {[%clk 0:00:39.8]}
33... Rd7 {[%clk 0:01:11.4]} 34. Ke2 {[%clk 0:00:40.5]} 34... Kd5 {[%clk
0:01:11.7]} 35. h4 {[%clk 0:00:38.7]} 35... a5 {[%clk 0:01:10.8]} 36. Rf3 {[%clk
0:00:38]} 36... Rc7 {[%clk 0:01:09.6]} 37. Kd1 {[%clk 0:00:37.8]} 37... Nc3+
{[%clk 0:01:09.5]} 38. Bxc3 {[%clk 0:00:38.7]} 38... Rxc3 {[%clk 0:01:11.4]} 39.
Rf7 {[%clk 0:00:26.2]} 39... Rxb3 {[%clk 0:01:12.1]} 40. Rxg7 {[%clk 0:00:27.3]}
40... a4 {[%clk 0:01:12.4]} 41. g4 {[%clk 0:00:28.2]} 41... a3 {[%clk
0:01:11.1]} 42. Ra7 {[%clk 0:00:29]} 42... b5 {[%clk 0:01:10.7]} 43. g5 {[%clk
0:00:30.5]} 43... hxg5 {[%clk 0:01:11.7]} 44. hxg5 {[%clk 0:00:32.4]} 44... b4
{[%clk 0:01:13]} 45. g6 {[%clk 0:00:33.6]} 45... Rb1+ {[%clk 0:01:11.7]} 46. Kc2
{[%clk 0:00:35.2]} 46... Rb2+ {[%clk 0:01:13.1]} 47. Kd3 {[%clk 0:00:35.8]}
47... e4# {[%clk 0:01:14.2]} 0-1

[Event "*** Titled Tuesday 3|2 Blitz"]
[Site "Chess.com"]
[Date "2015.09.01"]
[Round "3"]
[White "Mugzyyy"]
[Black "arnacman"]
[Result "0-1"]
[WhiteElo "2564"]
[BlackElo "2248"]
[TimeControl "180+2"]
[EndTime "11:33:14 PDT"]
[Termination "arnacman won by checkmate"]

1. d4 {[%clk 0:03:01.9]} 1... d5 {[%clk 0:02:44.7]} 2. c4 {[%clk 0:03:02.5]}
2... c6 {[%clk 0:02:45.7]} 3. Nf3 {[%clk 0:03:02.8]} 3... Nf6 {[%clk 0:02:46.5]}
4. Nc3 {[%clk 0:03:03.9]} 4... a6 {[%clk 0:02:47.4]} 5. c5 {[%clk 0:03:03]} 5...
Nbd7 {[%clk 0:02:47.8]} 6. h3 {[%clk 0:03:00.8]} 6... Qc7 {[%clk 0:02:45.8]} 7.
g4 {[%clk 0:02:50.8]} 7... g6 {[%clk 0:02:41.8]} 8. g5 {[%clk 0:02:49.1]} 8...
Ne4 {[%clk 0:02:34.6]} 9. Nxe4 {[%clk 0:02:29.7]} 9... dxe4 {[%clk 0:02:35.7]}
10. Nd2 {[%clk 0:02:31.4]} 10... e3 {[%clk 0:02:32.8]} 11. Nf3 {[%clk
0:02:32.7]} 11... exf2+ {[%clk 0:02:31.1]} 12. Kxf2 {[%clk 0:02:33.9]} 12... Bg7
{[%clk 0:02:29.8]} 13. h4 {[%clk 0:02:30.7]} 13... O-O {[%clk 0:02:21.6]} 14. b4
{[%clk 0:02:22.5]} 14... a5 {[%clk 0:02:17.4]} 15. Bd2 {[%clk 0:02:10.1]} 15...
axb4 {[%clk 0:02:15.2]} 16. Bxb4 {[%clk 0:02:11.4]} 16... e5 {[%clk 0:02:14.4]}
17. e3 {[%clk 0:02:06.5]} 17... exd4 {[%clk 0:02:10.9]} 18. exd4 {[%clk
0:02:07.6]} 18... b6 {[%clk 0:02:10.5]} 19. cxb6 {[%clk 0:02:06]} 19... Qxb6
{[%clk 0:02:06.2]} 20. Bxf8 {[%clk 0:02:07.3]} 20... Nxf8 {[%clk 0:02:06.3]} 21.
Bh3 {[%clk 0:02:03]} 21... Ne6 {[%clk 0:02:03.2]} 22. Bxe6 {[%clk 0:01:50.3]}
22... Bxe6 {[%clk 0:02:03]} 23. Qd2 {[%clk 0:01:51.9]} 23... Bd5 {[%clk
0:02:00]} 24. a4 {[%clk 0:01:42.3]} 24... Qb3 {[%clk 0:01:48]} 25. Qe3 {[%clk
0:01:35.4]} 25... Qc2+ {[%clk 0:01:45.4]} 26. Kg3 {[%clk 0:01:36.4]} 26... Rb8
{[%clk 0:01:24.1]} 27. Rhc1 {[%clk 0:01:29.2]} 27... Qf5 {[%clk 0:01:23.8]} 28.
a5 {[%clk 0:01:26.7]} 28... Bf8 {[%clk 0:01:19.2]} 29. a6 {[%clk 0:01:13.5]}
29... Bd6+ {[%clk 0:01:18.3]} 30. Ne5 {[%clk 0:01:14.4]} 30... h5 {[%clk
0:01:08.4]} 31. gxh6 {[%clk 0:01:10.9]} 31... Bxe5+ {[%clk 0:00:37.5]} 32. dxe5
{[%clk 0:01:09.9]} 32... Rb4 {[%clk 0:00:37.9]} 33. h7+ {[%clk 0:00:15.5]} 33...
Kxh7 {[%clk 0:00:37.7]} 34. Rh1 {[%clk 0:00:13.6]} 34... Rg4+ {[%clk 0:00:28.8]}
35. Kh2 {[%clk 0:00:14.8]} 35... Rg2# {[%clk 0:00:26.7]} 0-1